[Event "Titled Tuesday Blitz May 4 2021"]
[White "ValeriyGrinev"]
[Black "Djordjevic, Vuk"]
[BlackFideId "902098"]
[WhiteElo "2626"]
[BlackElo "2463"]
[Result "0-1"]
[Round "11"]
[TimeControl "180+1"]
[Date "2021.05.04"]
[WhiteClock "0:00:19"]
[BlackClock "0:00:09"]

1. d4 {[%clk 0:03:00]}  Nf6 {[%clk 0:02:59]} 2. c4 {[%clk 0:03:00]}  e6 {[%clk 0:02:59]} 3. Nc3 {[%clk 0:03:00]}  Bb4 {[%clk 0:03:00]} 4. e3 {[%clk 0:03:00]}  O-O {[%clk 0:02:59]} 5. Ne2 {[%clk 0:03:00]}  d5 {[%clk 0:02:58]} 6. a3 {[%clk 0:03:00]}  Be7 {[%clk 0:02:59]} 7. cxd5 {[%clk 0:02:57]}  exd5 {[%clk 0:02:58]} 8. b4 {[%clk 0:02:58]}  c6 {[%clk 0:02:50]} 9. Ng3 {[%clk 0:02:58]}  Nbd7 {[%clk 0:02:37]} 10. Nf5 {[%clk 0:02:55]}  b5 {[%clk 0:02:26]} 11. Bd3 {[%clk 0:02:45]}  Nb6 {[%clk 0:02:24]} 12. Nxe7+ {[%clk 0:02:42]}  Qxe7 {[%clk 0:02:24]} 13. O-O {[%clk 0:02:39]}  a5 {[%clk 0:02:24]} 14. bxa5 {[%clk 0:02:32]}  Rxa5 {[%clk 0:02:23]} 15. Qb3 {[%clk 0:02:21]}  Be6 {[%clk 0:02:06]} 16. Ne2 {[%clk 0:02:06]}  Rfa8 {[%clk 0:01:59]} 17. Nf4 {[%clk 0:01:46]}  Nc4 {[%clk 0:01:52]} 18. Nxe6 {[%clk 0:01:43]}  Qxe6 {[%clk 0:01:51]} 19. Re1 {[%clk 0:01:18]}  Qd6 {[%clk 0:01:45]} 20. e4 {[%clk 0:01:16]}  dxe4 {[%clk 0:01:31]} 21. Bxc4 {[%clk 0:01:16]}  bxc4 {[%clk 0:01:25]} 22. Qxc4 {[%clk 0:01:17]}  Ra4 {[%clk 0:01:25]} 23. Qc5 {[%clk 0:01:14]}  Qxd4 {[%clk 0:01:20]} 24. Qxd4 {[%clk 0:01:13]}  Rxd4 {[%clk 0:01:21]} 25. Bb2 {[%clk 0:01:14]}  Rc4 {[%clk 0:01:14]} 26. Rac1 {[%clk 0:01:14]}  Raa4 {[%clk 0:01:12]} 27. Bxf6 {[%clk 0:01:07]}  gxf6 {[%clk 0:01:13]} 28. Rxc4 {[%clk 0:01:07]}  Rxc4 {[%clk 0:01:13]} 29. g3 {[%clk 0:01:07]}  f5 {[%clk 0:01:07]} 30. Rd1 {[%clk 0:01:07]}  Kf8 {[%clk 0:01:03]} 31. Rd7 {[%clk 0:01:08]}  Ke8 {[%clk 0:00:41]} 32. Rc7 {[%clk 0:01:08]}  h6 {[%clk 0:00:37]} 33. Kg2 {[%clk 0:01:07]}  Rc2 {[%clk 0:00:34]} 34. Kf1 {[%clk 0:01:05]}  Rc3 {[%clk 0:00:20]} 35. a4 {[%clk 0:01:05]}  Rc5 {[%clk 0:00:19]} 36. Ke2 {[%clk 0:01:02]}  f6 {[%clk 0:00:14]} 37. Rh7 {[%clk 0:00:55]}  Ra5 {[%clk 0:00:10]} 38. Rxh6 {[%clk 0:00:54]}  Ke7 {[%clk 0:00:10]} 39. Rh7+ {[%clk 0:00:54]}  Ke6 {[%clk 0:00:07]} 40. Rc7 {[%clk 0:00:54]}  Kd5 {[%clk 0:00:08]} 41. Rf7 {[%clk 0:00:54]}  Ke6 {[%clk 0:00:03]} 42. Rc7 {[%clk 0:00:53]}  c5 {[%clk 0:00:03]} 43. h4 {[%clk 0:00:50]}  f4 {[%clk 0:00:02]} 44. gxf4 {[%clk 0:00:49]}  Kf5 {[%clk 0:00:02]} 45. h5 {[%clk 0:00:48]}  Kxf4 {[%clk 0:00:01]} 46. h6 {[%clk 0:00:48]}  Rxa4 {[%clk 0:00:02]} 47. Rxc5 {[%clk 0:00:45]}  Ra2+ {[%clk 0:00:03]} 48. Ke1 {[%clk 0:00:45]}  Ra1+ {[%clk 0:00:02]} 49. Ke2 {[%clk 0:00:45]}  Rh1 {[%clk 0:00:03]} 50. Rc2 {[%clk 0:00:34]}  Rxh6 {[%clk 0:00:03]} 51. Ra2 {[%clk 0:00:34]}  Rh3 {[%clk 0:00:03]} 52. Rb2 {[%clk 0:00:34]}  Rd3 {[%clk 0:00:03]} 53. Ra2 {[%clk 0:00:34]}  Rh3 {[%clk 0:00:03]} 54. Rb2 {[%clk 0:00:34]}  f5 {[%clk 0:00:03]} 55. Ra2 {[%clk 0:00:34]}  Kg4 {[%clk 0:00:04]} 56. Kf1 {[%clk 0:00:33]}  Rd3 {[%clk 0:00:02]} 57. Kg2 {[%clk 0:00:31]}  Kf4 {[%clk 0:00:02]} 58. Ra5 {[%clk 0:00:28]}  Rd6 {[%clk 0:00:02]} 59. Rb5 {[%clk 0:00:28]}  Rd2 {[%clk 0:00:02]} 60. Kg1 {[%clk 0:00:27]}  Re2 {[%clk 0:00:02]} 61. Ra5 {[%clk 0:00:26]}  Kg4 {[%clk 0:00:02]} 62. Ra8 {[%clk 0:00:26]}  Rc2 {[%clk 0:00:02]} 63. Rg8+ {[%clk 0:00:24]}  Kf3 {[%clk 0:00:02]} 64. Rg3+ {[%clk 0:00:25]}  Kf4 {[%clk 0:00:03]} 65. Ra3 {[%clk 0:00:25]}  Rd2 {[%clk 0:00:03]} 66. Rb3 {[%clk 0:00:25]}  Rd3 {[%clk 0:00:03]} 67. Rb5 {[%clk 0:00:24]}  Kg4 {[%clk 0:00:03]} 68. Rb8 {[%clk 0:00:22]}  f4 {[%clk 0:00:02]} 69. Rh8 {[%clk 0:00:19]}  Rd2 {[%clk 0:00:02]} 70. Rh7 {[%clk 0:00:18]}  Kf3 {[%clk 0:00:02]} 71. Rh3+ {[%clk 0:00:17]}  Ke2 {[%clk 0:00:03]} 72. Rh7 {[%clk 0:00:18]}  Rd1+ {[%clk 0:00:03]} 73. Kg2 {[%clk 0:00:19]}  f3+ {[%clk 0:00:03]} 74. Kg3 {[%clk 0:00:19]}  Rg1+ {[%clk 0:00:04]} 75. Kf4 {[%clk 0:00:19]}  Kxf2 {[%clk 0:00:04]} 76. Kxe4 {[%clk 0:00:18]}  Rg4+ {[%clk 0:00:05]} 77. Kd3 {[%clk 0:00:17]}  Kg2 {[%clk 0:00:05]} 78. Rf7 {[%clk 0:00:15]}  f2 {[%clk 0:00:06]} 79. Ke2 {[%clk 0:00:15]}  Re4+ {[%clk 0:00:06]} 80. Kd3 {[%clk 0:00:15]}  Re5 {[%clk 0:00:06]} 81. Rg7+ {[%clk 0:00:15]}  Kf3 {[%clk 0:00:07]} 82. Rf7+ {[%clk 0:00:16]}  Kg3 {[%clk 0:00:07]} 83. Rg7+ {[%clk 0:00:16]}  Kf4 {[%clk 0:00:08]} 84. Rf7+ {[%clk 0:00:16]}  Kg3 {[%clk 0:00:08]} 85. Rg7+ {[%clk 0:00:16]}  Kh2 {[%clk 0:00:09]} 86. Rf7 {[%clk 0:00:16]}  Kg2 {[%clk 0:00:09]} 87. Rg7+ {[%clk 0:00:16]}  Kf1 {[%clk 0:00:09]} 88. Kd2 {[%clk 0:00:16]}  Rd5+ {[%clk 0:00:09]} 89. Kc2 {[%clk 0:00:16]}  Ke2 {[%clk 0:00:08]} 90. Re7+ {[%clk 0:00:17]}  Kf3 {[%clk 0:00:08]} 91. Rf7+ {[%clk 0:00:18]}  Ke3 {[%clk 0:00:09]} 92. Re7+ {[%clk 0:00:18]}  Kf4 {[%clk 0:00:09]} 93. Rf7+ {[%clk 0:00:19]}  Rf5 {[%clk 0:00:09]} 0-1


[Site "https://www.chess.com"]

[Event "Titled Tuesday Blitz May 4 2021"]
[White "Velickovic, Zoran"]
[Black "Rosenberg, Evan S"]
[WhiteFideId "14601184"]
[BlackFideId "2019299"]
[WhiteElo "2341"]
[BlackElo "2145"]
[Result "1-0"]
[Round "11"]
[TimeControl "180+1"]
[Date "2021.05.04"]
[WhiteClock "0:01:14"]
[BlackClock "0:00:05"]

1. Nf3 {[%clk 0:03:00]}  d5 {[%clk 0:02:58]} 2. g3 {[%clk 0:03:01]}  Bg4 {[%clk 0:02:56]} 3. Bg2 {[%clk 0:03:00]}  Nd7 {[%clk 0:02:54]} 4. c4 {[%clk 0:03:00]}  e6 {[%clk 0:02:48]} 5. O-O {[%clk 0:02:58]}  c6 {[%clk 0:02:47]} 6. d4 {[%clk 0:02:55]}  Ngf6 {[%clk 0:02:46]} 7. Nc3 {[%clk 0:02:53]}  Bd6 {[%clk 0:02:44]} 8. Qb3 {[%clk 0:02:40]}  Qb8 {[%clk 0:02:32]} 9. Re1 {[%clk 0:02:34]}  h5 {[%clk 0:02:28]} 10. h4 {[%clk 0:02:33]}  b6 {[%clk 0:00:55]} 11. e4 {[%clk 0:02:32]}  dxe4 {[%clk 0:00:49]} 12. Nxe4 {[%clk 0:02:31]}  Nxe4 {[%clk 0:00:41]} 13. Rxe4 {[%clk 0:02:31]}  Nf6 {[%clk 0:00:41]} 14. Re1 {[%clk 0:02:30]}  Qc7 {[%clk 0:00:37]} 15. Bg5 {[%clk 0:02:24]}  Bxg3 {[%clk 0:00:02]} 16. fxg3 {[%clk 0:02:19]}  Qxg3 {[%clk 0:00:03]} 17. Bxf6 {[%clk 0:02:15]}  gxf6 {[%clk 0:00:04]} 18. Nh2 {[%clk 0:02:11]}  Qxb3 {[%clk 0:00:04]} 19. axb3 {[%clk 0:02:10]}  Kd7 {[%clk 0:00:02]} 20. d5 {[%clk 0:02:08]}  cxd5 {[%clk 0:00:03]} 21. cxd5 {[%clk 0:02:08]}  Rag8 {[%clk 0:00:02]} 22. Kf2 {[%clk 0:02:05]}  Rh7 {[%clk 0:00:01]} 23. Nf3 {[%clk 0:01:45]}  Rhg7 {[%clk 0:00:01]} 24. dxe6+ {[%clk 0:01:32]}  Ke7 {[%clk 0:00:02]} 25. exf7+ {[%clk 0:01:30]}  Kxf7 {[%clk 0:00:02]} 26. Rac1 {[%clk 0:01:28]}  Kg6 {[%clk 0:00:02]} 27. Rc6 {[%clk 0:01:26]}  Kh7 {[%clk 0:00:02]} 28. Rxf6 {[%clk 0:01:23]}  Rc8 {[%clk 0:00:03]} 29. Re2 {[%clk 0:01:20]}  Rg6 {[%clk 0:00:02]} 30. Ng5+ {[%clk 0:01:18]}  Rxg5 {[%clk 0:00:02]} 31. hxg5 {[%clk 0:01:17]}  Bxe2 {[%clk 0:00:02]} 32. Kxe2 {[%clk 0:01:17]}  Rc2+ {[%clk 0:00:03]} 33. Kf1 {[%clk 0:01:17]}  Rxb2 {[%clk 0:00:04]} 34. Be4+ {[%clk 0:01:17]}  Kg7 {[%clk 0:00:04]} 35. Rg6+ {[%clk 0:01:16]}  Kf7 {[%clk 0:00:05]} 36. Rd6 {[%clk 0:01:14]}  Rxb3 {[%clk 0:00:04]} 37. Bd5+ {[%clk 0:01:14]}  Ke7 {[%clk 0:00:05]} 38. Re6+ {[%clk 0:01:14]} 1-0


[Site "https://www.chess.com"]

[Event "Titled Tuesday Blitz May 4 2021"]
[White "Voege, Tobias"]
[Black "Alboredo, Julia"]
[WhiteFideId "1270513"]
[BlackFideId "2124807"]
[WhiteElo "2283"]
[BlackElo "2041"]
[Result "0-1"]
[Round "11"]
[TimeControl "180+1"]
[Date "2021.05.04"]
[WhiteClock "0:00:02"]
[BlackClock "0:00:08"]

1. d4 {[%clk 0:03:00]}  Nf6 {[%clk 0:02:59]} 2. c4 {[%clk 0:03:00]}  g6 {[%clk 0:02:59]} 3. Nc3 {[%clk 0:03:00]}  Bg7 {[%clk 0:02:58]} 4. Nf3 {[%clk 0:03:01]}  d6 {[%clk 0:02:59]} 5. Bg5 {[%clk 0:03:00]}  O-O {[%clk 0:02:59]} 6. e3 {[%clk 0:02:58]}  c6 {[%clk 0:02:51]} 7. Be2 {[%clk 0:02:57]}  a6 {[%clk 0:02:52]} 8. a4 {[%clk 0:02:56]}  a5 {[%clk 0:02:52]} 9. O-O {[%clk 0:02:56]}  Na6 {[%clk 0:02:51]} 10. Nd2 {[%clk 0:02:54]}  Nb4 {[%clk 0:02:49]} 11. f4 {[%clk 0:02:53]}  d5 {[%clk 0:02:37]} 12. Nf3 {[%clk 0:02:40]}  h6 {[%clk 0:02:29]} 13. Bh4 {[%clk 0:02:39]}  Bf5 {[%clk 0:02:26]} 14. Rc1 {[%clk 0:02:35]}  Ne4 {[%clk 0:02:20]} 15. cxd5 {[%clk 0:02:28]}  Nxc3 {[%clk 0:02:15]} 16. bxc3 {[%clk 0:02:20]}  Nxd5 {[%clk 0:02:15]} 17. Qd2 {[%clk 0:02:18]}  Nf6 {[%clk 0:02:12]} 18. Bxf6 {[%clk 0:02:11]}  exf6 {[%clk 0:02:13]} 19. Bd3 {[%clk 0:02:11]}  Bxd3 {[%clk 0:02:11]} 20. Qxd3 {[%clk 0:02:11]}  Re8 {[%clk 0:02:11]} 21. e4 {[%clk 0:02:03]}  Qd7 {[%clk 0:02:03]} 22. Rb1 {[%clk 0:01:42]}  c5 {[%clk 0:01:58]} 23. d5 {[%clk 0:01:37]}  Qxa4 {[%clk 0:01:56]} 24. c4 {[%clk 0:01:32]}  Qd7 {[%clk 0:01:51]} 25. Rb5 {[%clk 0:01:26]}  a4 {[%clk 0:01:49]} 26. Ra1 {[%clk 0:01:20]}  a3 {[%clk 0:01:47]} 27. Nd2 {[%clk 0:00:59]}  a2 {[%clk 0:01:22]} 28. Rb2 {[%clk 0:00:34]}  Qg4 {[%clk 0:01:16]} 29. g3 {[%clk 0:00:20]}  h5 {[%clk 0:01:11]} 30. Rbxa2 {[%clk 0:00:19]}  Rxa2 {[%clk 0:01:12]} 31. Rxa2 {[%clk 0:00:20]}  h4 {[%clk 0:01:13]} 32. Kg2 {[%clk 0:00:20]}  h3+ {[%clk 0:01:13]} 33. Kf2 {[%clk 0:00:20]}  Qd1 {[%clk 0:01:12]} 34. Qf1 {[%clk 0:00:20]}  Qg4 {[%clk 0:01:03]} 35. Qe2 {[%clk 0:00:14]}  Qd7 {[%clk 0:01:02]} 36. Qf3 {[%clk 0:00:13]}  b5 {[%clk 0:01:01]} 37. cxb5 {[%clk 0:00:12]}  Qxb5 {[%clk 0:01:02]} 38. Rc2 {[%clk 0:00:12]}  Ra8 {[%clk 0:00:55]} 39. Qe2 {[%clk 0:00:11]}  Qb4 {[%clk 0:00:38]} 40. Qc4 {[%clk 0:00:11]}  Qa3 {[%clk 0:00:30]} 41. Qxc5 {[%clk 0:00:09]}  Qa1 {[%clk 0:00:30]} 42. Qc3 {[%clk 0:00:07]}  Qh1 {[%clk 0:00:29]} 43. Nf3 {[%clk 0:00:07]}  Qg2+ {[%clk 0:00:28]} 44. Ke3 {[%clk 0:00:08]}  Qf1 {[%clk 0:00:26]} 45. Qe1 {[%clk 0:00:07]}  Ra3+ {[%clk 0:00:25]} 46. Kd4 {[%clk 0:00:06]}  Qxf3 {[%clk 0:00:24]} 47. Rc8+ {[%clk 0:00:04]}  Kh7 {[%clk 0:00:22]} 48. Rc3 {[%clk 0:00:05]}  f5+ {[%clk 0:00:19]} 49. e5 {[%clk 0:00:05]}  Rxc3 {[%clk 0:00:19]} 50. Qxc3 {[%clk 0:00:06]}  Qe4+ {[%clk 0:00:20]} 51. Kc5 {[%clk 0:00:06]}  Bf8+ {[%clk 0:00:20]} 52. d6 {[%clk 0:00:06]}  Qb7 {[%clk 0:00:18]} 53. Qc4 {[%clk 0:00:06]}  f6 {[%clk 0:00:15]} 54. Qe6 {[%clk 0:00:04]}  fxe5 {[%clk 0:00:14]} 55. fxe5 {[%clk 0:00:05]}  Qa7+ {[%clk 0:00:13]} 56. Kc6 {[%clk 0:00:05]}  Qa4+ {[%clk 0:00:13]} 57. Kc7 {[%clk 0:00:05]}  Qc2+ {[%clk 0:00:13]} 58. Kd7 {[%clk 0:00:05]}  Qxh2 {[%clk 0:00:11]} 59. Qf7+ {[%clk 0:00:05]}  Bg7 {[%clk 0:00:12]} 60. e6 {[%clk 0:00:05]}  Qa2 {[%clk 0:00:08]} 61. Ke7 {[%clk 0:00:03]}  Qa3 {[%clk 0:00:08]} 62. Kd7 {[%clk 0:00:03]}  h2 {[%clk 0:00:08]} 63. e7 {[%clk 0:00:01]}  h1=Q {[%clk 0:00:08]} 64. Kd8 {[%clk 0:00:01]}  Qb7 {[%clk 0:00:08]} 65. e8=Q {[%clk 0:00:02]}  Qaa8# {[%clk 0:00:08]} 0-1


[Site "https://www.chess.com"]

[Event "Titled Tuesday Blitz May 4 2021"]
[White "Vovk, Orest"]
[Black "Berezin, Viktor"]
[WhiteFideId "14113490"]
[BlackFideId "14107872"]
[WhiteElo "2203"]
[BlackElo "2310"]
[Result "1-0"]
[Round "11"]
[TimeControl "180+1"]
[Date "2021.05.04"]
[WhiteClock "0:01:19"]
[BlackClock "0:00:34"]

1. d4 {[%clk 0:03:00]}  Nf6 {[%clk 0:02:59]} 2. Nf3 {[%clk 0:02:58]}  g6 {[%clk 0:02:56]} 3. Bg5 {[%clk 0:02:59]}  Bg7 {[%clk 0:02:56]} 4. Nbd2 {[%clk 0:02:56]}  d6 {[%clk 0:02:54]} 5. e4 {[%clk 0:02:55]}  O-O {[%clk 0:02:53]} 6. Bd3 {[%clk 0:02:55]}  c5 {[%clk 0:02:50]} 7. c3 {[%clk 0:02:55]}  Nc6 {[%clk 0:02:46]} 8. O-O {[%clk 0:02:54]}  e5 {[%clk 0:02:45]} 9. dxe5 {[%clk 0:02:52]}  dxe5 {[%clk 0:02:36]} 10. Nc4 {[%clk 0:02:52]}  Qc7 {[%clk 0:02:31]} 11. Ne3 {[%clk 0:02:49]}  Ne7 {[%clk 0:02:16]} 12. Qc2 {[%clk 0:02:41]}  h6 {[%clk 0:02:11]} 13. Bxf6 {[%clk 0:02:36]}  Bxf6 {[%clk 0:02:12]} 14. Bc4 {[%clk 0:02:34]}  Bg7 {[%clk 0:02:05]} 15. Rad1 {[%clk 0:02:31]}  a6 {[%clk 0:02:00]} 16. a4 {[%clk 0:02:31]}  Rb8 {[%clk 0:01:59]} 17. Rd2 {[%clk 0:02:22]}  b5 {[%clk 0:01:58]} 18. axb5 {[%clk 0:02:23]}  axb5 {[%clk 0:01:59]} 19. Bd5 {[%clk 0:02:23]}  Kh7 {[%clk 0:01:50]} 20. Rfd1 {[%clk 0:02:21]}  Kh8 {[%clk 0:01:36]} 21. h3 {[%clk 0:02:12]}  f5 {[%clk 0:01:29]} 22. exf5 {[%clk 0:02:12]}  gxf5 {[%clk 0:01:26]} 23. Nh4 {[%clk 0:02:01]}  f4 {[%clk 0:01:15]} 24. Ng4 {[%clk 0:01:53]}  Bxg4 {[%clk 0:00:59]} 25. hxg4 {[%clk 0:01:52]}  Bf6 {[%clk 0:00:59]} 26. Ng6+ {[%clk 0:01:43]}  Nxg6 {[%clk 0:00:58]} 27. Qxg6 {[%clk 0:01:44]}  Qg7 {[%clk 0:00:58]} 28. Qh5 {[%clk 0:01:31]}  Rbd8 {[%clk 0:00:50]} 29. Be4 {[%clk 0:01:31]}  Rxd2 {[%clk 0:00:43]} 30. Rxd2 {[%clk 0:01:32]}  Rd8 {[%clk 0:00:43]} 31. Rxd8+ {[%clk 0:01:30]}  Bxd8 {[%clk 0:00:44]} 32. Qe8+ {[%clk 0:01:29]}  Qg8 {[%clk 0:00:44]} 33. Qxe5+ {[%clk 0:01:26]}  Qg7 {[%clk 0:00:45]} 34. Qxc5 {[%clk 0:01:23]}  Qd7 {[%clk 0:00:34]} 35. Qf8# {[%clk 0:01:19]} 1-0


[Site "https://www.chess.com"]

[Event "Titled Tuesday Blitz May 4 2021"]
[White "Vukovic, Zdravko"]
[Black "Mirzoev, Azer"]
[WhiteFideId "900877"]
[BlackFideId "13400304"]
[WhiteElo "2494"]
[BlackElo "2525"]
[Result "0-1"]
[Round "11"]
[TimeControl "180+1"]
[Date "2021.05.04"]
[WhiteClock "0:00:10"]
[BlackClock "0:00:07"]

1. e4 {[%clk 0:02:52]}  c6 {[%clk 0:02:59]} 2. Ne2 {[%clk 0:02:51]}  d5 {[%clk 0:02:58]} 3. e5 {[%clk 0:02:52]}  c5 {[%clk 0:02:53]} 4. d4 {[%clk 0:02:51]}  Nc6 {[%clk 0:02:53]} 5. c3 {[%clk 0:02:52]}  e6 {[%clk 0:02:50]} 6. Nd2 {[%clk 0:02:43]}  Bd7 {[%clk 0:02:43]} 7. Nf3 {[%clk 0:02:43]}  Rc8 {[%clk 0:02:42]} 8. dxc5 {[%clk 0:02:36]}  Bxc5 {[%clk 0:02:41]} 9. Ned4 {[%clk 0:02:36]}  Nge7 {[%clk 0:02:39]} 10. Bd3 {[%clk 0:02:21]}  Ng6 {[%clk 0:02:35]} 11. Qe2 {[%clk 0:02:21]}  Qb6 {[%clk 0:02:27]} 12. Nb3 {[%clk 0:02:11]}  Be7 {[%clk 0:02:19]} 13. O-O {[%clk 0:02:00]}  a5 {[%clk 0:02:18]} 14. Be3 {[%clk 0:01:42]}  Qc7 {[%clk 0:02:17]} 15. Bd2 {[%clk 0:01:36]}  a4 {[%clk 0:02:12]} 16. Nbd4 {[%clk 0:01:36]}  Ngxe5 {[%clk 0:01:50]} 17. Nb5 {[%clk 0:01:28]}  Nxf3+ {[%clk 0:01:16]} 18. Qxf3 {[%clk 0:01:26]}  Qe5 {[%clk 0:01:02]} 19. Bf4 {[%clk 0:01:18]}  Qf6 {[%clk 0:01:02]} 20. Qe3 {[%clk 0:01:01]}  O-O {[%clk 0:00:48]} 21. Rae1 {[%clk 0:00:54]}  h6 {[%clk 0:00:45]} 22. Nd6 {[%clk 0:00:50]}  Bxd6 {[%clk 0:00:44]} 23. Bxd6 {[%clk 0:00:50]}  Rfe8 {[%clk 0:00:43]} 24. f4 {[%clk 0:00:50]}  Qd8 {[%clk 0:00:36]} 25. Qg3 {[%clk 0:00:46]}  f5 {[%clk 0:00:31]} 26. h3 {[%clk 0:00:42]}  Qf6 {[%clk 0:00:28]} 27. Re2 {[%clk 0:00:40]}  Ne7 {[%clk 0:00:24]} 28. Be5 {[%clk 0:00:37]}  Qf7 {[%clk 0:00:22]} 29. Rfe1 {[%clk 0:00:35]}  a3 {[%clk 0:00:18]} 30. b3 {[%clk 0:00:34]}  Ng6 {[%clk 0:00:16]} 31. Bd4 {[%clk 0:00:34]}  Kh7 {[%clk 0:00:14]} 32. Re3 {[%clk 0:00:32]}  Ne7 {[%clk 0:00:13]} 33. Qf2 {[%clk 0:00:26]}  Nc6 {[%clk 0:00:12]} 34. Bc5 {[%clk 0:00:22]}  Qf6 {[%clk 0:00:10]} 35. b4 {[%clk 0:00:16]}  Kh8 {[%clk 0:00:10]} 36. b5 {[%clk 0:00:15]}  Ne7 {[%clk 0:00:09]} 37. Bd4 {[%clk 0:00:15]}  Qf7 {[%clk 0:00:09]} 38. Rg3 {[%clk 0:00:16]}  Ng6 {[%clk 0:00:08]} 39. Be2 {[%clk 0:00:15]}  e5 {[%clk 0:00:07]} 40. fxe5 {[%clk 0:00:15]}  Nf8 {[%clk 0:00:06]} 41. Qf4 {[%clk 0:00:14]}  Ne6 {[%clk 0:00:06]} 42. Qd2 {[%clk 0:00:14]}  f4 {[%clk 0:00:05]} 43. Rf3 {[%clk 0:00:14]}  Rf8 {[%clk 0:00:05]} 44. Bd3 {[%clk 0:00:14]}  Qh5 {[%clk 0:00:05]} 45. Bb1 {[%clk 0:00:13]}  Rcd8 {[%clk 0:00:05]} 46. Qd3 {[%clk 0:00:13]}  Ng5 {[%clk 0:00:03]} 47. Rf2 {[%clk 0:00:10]}  Bf5 {[%clk 0:00:04]} 48. Qf1 {[%clk 0:00:09]}  Bxb1 {[%clk 0:00:05]} 49. Rxb1 {[%clk 0:00:09]}  f3 {[%clk 0:00:05]} 50. e6 {[%clk 0:00:07]}  Rde8 {[%clk 0:00:04]} 51. Re1 {[%clk 0:00:04]}  Rxe6 {[%clk 0:00:04]} 52. Rxe6 {[%clk 0:00:04]}  Nxe6 {[%clk 0:00:04]} 53. Rxf3 {[%clk 0:00:04]}  Rxf3 {[%clk 0:00:03]} 54. Qxf3 {[%clk 0:00:05]}  Qxf3 {[%clk 0:00:03]} 55. gxf3 {[%clk 0:00:06]}  Kg8 {[%clk 0:00:03]} 56. Be5 {[%clk 0:00:05]}  Kf7 {[%clk 0:00:03]} 57. Kf2 {[%clk 0:00:06]}  Nc5 {[%clk 0:00:03]} 58. Ke3 {[%clk 0:00:06]}  Ke6 {[%clk 0:00:03]} 59. Bxg7 {[%clk 0:00:05]}  h5 {[%clk 0:00:02]} 60. Kf4 {[%clk 0:00:06]}  Nd3+ {[%clk 0:00:02]} 61. Kg5 {[%clk 0:00:06]}  Nc1 {[%clk 0:00:03]} 62. Bf8 {[%clk 0:00:07]}  Nxa2 {[%clk 0:00:04]} 63. Bxa3 {[%clk 0:00:07]}  Nxc3 {[%clk 0:00:04]} 64. b6 {[%clk 0:00:08]}  Ne2 {[%clk 0:00:04]} 65. Kxh5 {[%clk 0:00:08]}  d4 {[%clk 0:00:04]} 66. Bb4 {[%clk 0:00:07]}  d3 {[%clk 0:00:04]} 67. Kg6 {[%clk 0:00:07]}  Nf4+ {[%clk 0:00:04]} 68. Kg5 {[%clk 0:00:07]}  Nxh3+ {[%clk 0:00:04]} 69. Kg4 {[%clk 0:00:08]}  Nf2+ {[%clk 0:00:04]} 70. Kg3 {[%clk 0:00:08]}  Nd1 {[%clk 0:00:04]} 71. f4 {[%clk 0:00:08]}  Ne3 {[%clk 0:00:04]} 72. Kf3 {[%clk 0:00:09]}  Nd5 {[%clk 0:00:04]} 73. Bd2 {[%clk 0:00:09]}  Kf5 {[%clk 0:00:04]} 74. Kg3 {[%clk 0:00:08]}  Ke4 {[%clk 0:00:04]} 75. Kg4 {[%clk 0:00:09]}  Ne7 {[%clk 0:00:04]} 76. Kg3 {[%clk 0:00:08]}  Nf5+ {[%clk 0:00:05]} 77. Kg4 {[%clk 0:00:08]}  Nd4 {[%clk 0:00:05]} 78. Kg5 {[%clk 0:00:09]}  Nf3+ {[%clk 0:00:05]} 79. Kg6 {[%clk 0:00:09]}  Nxd2 {[%clk 0:00:06]} 80. f5 {[%clk 0:00:10]}  Nc4 {[%clk 0:00:06]} 81. f6 {[%clk 0:00:10]}  Nd6 {[%clk 0:00:07]} 0-1


[Site "https://www.chess.com"]

[Event "Titled Tuesday Blitz May 4 2021"]
[White "Weetik, Vjacheslav"]
[Black "Maiorov, Nikita"]
[WhiteFideId "4153472"]
[BlackFideId "13501720"]
[WhiteElo "2469"]
[BlackElo "2440"]
[Result "1/2-1/2"]
[Round "11"]
[TimeControl "180+1"]
[Date "2021.05.04"]
[WhiteClock "0:00:07"]
[BlackClock "0:00:12"]

1. d4 {[%clk 0:03:00]}  Nf6 {[%clk 0:02:58]} 2. Bf4 {[%clk 0:03:00]}  e6 {[%clk 0:02:58]} 3. e3 {[%clk 0:03:00]}  c5 {[%clk 0:02:57]} 4. c3 {[%clk 0:03:00]}  b6 {[%clk 0:02:46]} 5. Nd2 {[%clk 0:02:59]}  Be7 {[%clk 0:02:46]} 6. h3 {[%clk 0:02:58]}  O-O {[%clk 0:02:45]} 7. Ngf3 {[%clk 0:02:58]}  cxd4 {[%clk 0:02:44]} 8. exd4 {[%clk 0:02:57]}  Bb7 {[%clk 0:02:44]} 9. Bd3 {[%clk 0:02:57]}  d6 {[%clk 0:02:43]} 10. O-O {[%clk 0:02:54]}  Nbd7 {[%clk 0:02:43]} 11. Bh2 {[%clk 0:02:48]}  Re8 {[%clk 0:02:42]} 12. Re1 {[%clk 0:02:48]}  Bf8 {[%clk 0:02:42]} 13. a4 {[%clk 0:02:47]}  a6 {[%clk 0:02:42]} 14. Nc4 {[%clk 0:02:42]}  Qc7 {[%clk 0:02:41]} 15. Nfd2 {[%clk 0:02:37]}  Bc6 {[%clk 0:02:40]} 16. Qb3 {[%clk 0:02:30]}  Rab8 {[%clk 0:02:36]} 17. Qa3 {[%clk 0:02:00]}  e5 {[%clk 0:01:55]} 18. dxe5 {[%clk 0:01:58]}  dxe5 {[%clk 0:01:54]} 19. Qb3 {[%clk 0:01:55]}  Bd5 {[%clk 0:01:53]} 20. Qc2 {[%clk 0:01:53]}  b5 {[%clk 0:01:49]} 21. axb5 {[%clk 0:01:52]}  axb5 {[%clk 0:01:49]} 22. Ne3 {[%clk 0:01:50]}  Bc6 {[%clk 0:01:46]} 23. b4 {[%clk 0:01:29]}  Qb7 {[%clk 0:01:40]} 24. Nb3 {[%clk 0:01:15]}  Qc8 {[%clk 0:01:33]} 25. Rad1 {[%clk 0:01:07]}  Rb6 {[%clk 0:01:28]} 26. Qe2 {[%clk 0:00:48]}  Ne4 {[%clk 0:01:03]} 27. Rc1 {[%clk 0:00:42]}  Ndf6 {[%clk 0:01:02]} 28. Na5 {[%clk 0:00:36]}  Bd7 {[%clk 0:00:59]} 29. Nd5 {[%clk 0:00:35]}  Nxd5 {[%clk 0:00:58]} 30. Qxe4 {[%clk 0:00:34]}  Nf6 {[%clk 0:00:58]} 31. Qe3 {[%clk 0:00:33]}  Rbe6 {[%clk 0:00:55]} 32. Nb3 {[%clk 0:00:26]}  Nd5 {[%clk 0:00:51]} 33. Qe4 {[%clk 0:00:22]}  Nf6 {[%clk 0:00:51]} 34. Qe3 {[%clk 0:00:23]}  e4 {[%clk 0:00:45]} 35. Bf1 {[%clk 0:00:22]}  g6 {[%clk 0:00:37]} 36. c4 {[%clk 0:00:22]}  bxc4 {[%clk 0:00:36]} 37. Rxc4 {[%clk 0:00:20]}  Rc6 {[%clk 0:00:35]} 38. Nc5 {[%clk 0:00:18]}  Bf5 {[%clk 0:00:32]} 39. g4 {[%clk 0:00:17]}  Bxg4 {[%clk 0:00:30]} 40. hxg4 {[%clk 0:00:16]}  Nxg4 {[%clk 0:00:30]} 41. Qh3 {[%clk 0:00:15]}  Nxh2 {[%clk 0:00:30]} 42. Kh1 {[%clk 0:00:10]}  Nxf1 {[%clk 0:00:24]} 43. Qxc8 {[%clk 0:00:08]}  Rexc8 {[%clk 0:00:23]} 44. Rxf1 {[%clk 0:00:08]}  Bxc5 {[%clk 0:00:21]} 45. Rfc1 {[%clk 0:00:08]}  Bxb4 {[%clk 0:00:20]} 46. Rxc6 {[%clk 0:00:08]}  Rxc6 {[%clk 0:00:20]} 47. Rxc6 {[%clk 0:00:08]}  f5 {[%clk 0:00:20]} 48. Rc7 {[%clk 0:00:07]}  Bd6 {[%clk 0:00:19]} 49. Rd7 {[%clk 0:00:07]}  Be5 {[%clk 0:00:19]} 50. Kg2 {[%clk 0:00:08]}  Bg7 {[%clk 0:00:19]} 51. f3 {[%clk 0:00:08]}  exf3+ {[%clk 0:00:17]} 52. Kxf3 {[%clk 0:00:09]}  h6 {[%clk 0:00:16]} 53. Kf4 {[%clk 0:00:08]}  Kh7 {[%clk 0:00:16]} 54. Rb7 {[%clk 0:00:08]}  Kg8 {[%clk 0:00:14]} 55. Rd7 {[%clk 0:00:07]}  Bf8 {[%clk 0:00:13]} 56. Ke5 {[%clk 0:00:07]}  Bg7+ {[%clk 0:00:12]} 57. Kf4 {[%clk 0:00:07]} 1/2-1/2


[Site "https://www.chess.com"]